Cogmind - Beta 16 @@@ ROGUE MODE // 2026.01.06 @ 15:28:32 Player: KaiserChief Result: Destroyed by D-53 Grenadier with Mini Grenade Launcher Performance ------------- Evolutions (0) 0 Regions Visited (2) 400 Robots Destroyed (9) 45 Value Destroyed (148) 148 Prototype IDs (0) 0 Alien Tech Used (0) 0 Bonus (0) 0 TOTAL SCORE: 593 Bonus ------- None Cogmind --------- Core Integrity 0/250 Matter 275/300 Energy 215/250 System Corruption 0% Temperature Cool (0) Movement Flying (114) Ox1 Location -10/Mines Parts ------- > --- POWER (1) -------- Ion Engine > --- PROPULSION (2) --- Flight Unit Cesium-ion Thruster > --- UTILITY (2) ------ Small Storage Unit Improved Terrain Scanner > --- WEAPON (2) ------- (None) > --- INVENTORY (8) ---- Light Ion Engine Light Treads Improved Trap Extractor (0/6) Small Laser Grenade Launcher Heavy Mace Peak State ------------ > --- POWER ------------ Ion Engine > --- PROPULSION ------- Light Treads Light Treads > --- UTILITY ---------- Small Storage Unit Improved Terrain Scanner > --- WEAPON ----------- Small Laser EM Pulse Cannon > --- INVENTORY -------- Light Ion Engine Flight Unit Cesium-ion Thruster Small Laser Grenade Launcher Heavy Mace [Rating: 12] Favorites ----------- Power Ion Engine Engine Ion Engine Propulsion Light Treads Treads Light Treads Flight Unit Flight Unit Utility Improved Terrain Scanner Device Improved Terrain Scanner Storage Small Storage Unit Weapon Small Laser Energy Gun Small Laser Energy Cannon EM Pulse Cannon Launcher Grenade Launcher Build | -11 -10 -10 ------- Run | Yrd Mat Min Slots Evolved . | . . . Power . | . . . Propulsion . | . . . Utility . | . . . Weapon . | . . . Parts Attached 12 | 6 . 6 Power 1 | 1 . . Engine 1 | 1 . . Core . | . . . Reactor . | . . . Propulsion 4 | 2 . 2 Treads 2 | 2 . . Leg . | . . . Wheel . | . . . Hover . | . . . Flight 2 | . . 2 Utility 3 | 1 . 2 Device 2 | 1 . 1 Storage 1 | . . 1 Processor . | . . . Hackware . | . . . Protection . | . . . Artifact . | . . . Weapon 4 | 2 . 2 Energy Gun 2 | 2 . . Energy Cannon 1 | . . 1 Ballistic Gun . | . . . Ballistic Cannon . | . . . Launcher 1 | . . 1 Special Weapon . | . . . Impact Weapon . | . . . Slashing Weapon . | . . . Piercing Weapon . | . . . Special Melee Weapon . | . . . Unidentified Prototypes . | . . . Parts Lost 3 | . . 3 Power . | . . . Propulsion 1 | . . 1 Utility . | . . . Weapon 2 | . . 2 Highest Loss Streak 3 | . . 3 To Critical Strikes . | . . . Average Backups 2 | . 1 3 Power . | . . . Propulsion . | . . . Utility . | . 1 . Weapon . | . . 1 Tool/Special . | . . . Unused Backups 3 | . . 3 Power 1 | . . 1 Propulsion 1 | . . 1 Utility . | . . . Weapon 1 | . . 1 Tool/Special . | . . . Average Slot Usage (%) 88 | . 85 92 Engine 14 | . 14 14 Treads 28 | . 28 28 Device 16 | . 14 18 Storage 1 | . . 2 Energy Gun 26 | . 28 24 Peak Build Rating 12 | 8 8 12 Average Rating 8 | 4 8 8 On Entrance 5 | . 8 8 Avg Prop Armor Cover (%) . | . . . Naked Turns . | . . . Heaviest Build 18 | 8 8 18 Greatest Support 40 | 40 40 40 Greatest Overweight (x) . | . . . Average Overweight (x) . | . . . Largest Inventory Capacity 8 | 5 5 8 Average Capacity 5 | 5 5 5 Most Carried 7 | 5 2 7 Average Carried 2 | 1 1 3 Final Capacity 8 | 5 5 8 Final Carried 6 | 1 2 6 Class Distribution -------------------- 100% | Mutant Dominant Class ---------------- Mutant | -10/Materials Mutant | -10/Mines Resources | -11 -10 -10 ----------- Run | Yrd Mat Min Matter Collected 300 | 217 . 83 Remotely . | . . . Salvage Created 151 | 15 . 136 Parts 15 | 4 . 11 Haulers Intercepted . | . . . Recyclers Shooed . | . . . Parts Field Recycled . | . . . Retrieved Matter . | . . . Parts Self-Destructed . | . . . Prevented . | . . . Parts Restored . | . . . Kills | -11 -10 -10 ------- Run | Yrd Mat Min Combat Hostiles Destroyed 8 | . . 8 Guns 5 | . . 5 AOE 3 | . . 3 Classes Destroyed 3 | 1 . 2 Tunneler 1 | 1 . . Swarmer 6 | . . 6 Grunt 2 | . . 2 Best Kill Streak 3 | 1 . 3 Combat Bots Only 3 | . . 3 Max Kills in Single Turn 3 | 1 . 3 Gunslinging . | . . . Exploded 3 | . . 3 Melee . | . . . Uniques/NPCs Destroyed . | . . . Combat | -11 -10 -10 -------- Run | Yrd Mat Min Hostile Shots Fired 42 | . 4 38 Missed 6 | . 2 4 Hits 36 | . 2 34 Projectile 36 | . 2 34 AOE 7 | . . 7 Damage Taken 661 | . 22 639 Core 255 | . 12 243 Absorbed by Shields . | . . . Core Remaining (%) 100 | 100 . . Volleys Fired 20 | 3 . 17 Largest 2 | 2 . 2 Hottest 80 | 80 . 80 Shots Fired 40 | 6 . 34 Gun 39 | 6 . 33 Cannon . | . . . Launcher 1 | . . 1 Special . | . . . Kinetic . | . . . Thermal 39 | 6 . 33 Explosive 1 | . . 1 Electromagnetic . | . . . Robot Hit Streak 7 | 2 . 7 Robot Miss Streak 2 | 1 . 2 Penetration Max . | . . . Secondary Targets 1 | . . 1 Max Gunslinging Chain 1 | . . 1 Shots Hit Robots 28 | 4 . 24 Core Hits 13 | 2 . 11 Critical Kills . | . . . Critical Parts Destroyed . | . . . Critical Strikes . | . . . Melee Attacks . | . . . Impact . | . . . Slashing . | . . . Piercing . | . . . Sneak Attacks . | . . . Combat Hostiles . | . . . Follow-up Attacks . | . . . Damage Inflicted 476 | 51 . 425 Guns 326 | 51 . 275 Cannons . | . . . Explosions 150 | . . 150 Melee . | . . . Ramming . | . . . Kinetic . | . . . Thermal 326 | 51 . 275 Explosive 150 | . . 150 Electromagnetic . | . . . Impact . | . . . Slashing . | . . . Piercing . | . . . Highest Corruption . | . . . Average Corruption . | . . . Corruption Purged . | . . . Corruption Blocked . | . . . Overload Shots . | . . . Overflow Damage . | . . . Projectiles . | . . . Explosions . | . . . Melee . | . . . Knockbacks . | . . . Impact . | . . . Kinetic . | . . . Secondary . | . . . Self-Inflicted Damage . | . . . Shots . | . . . Rammed . | . . . Targets Rammed . | . . . Kicked . | . . . Crushed . | . . . Highest Temperature 337 | 54 . 337 Average Temperature 141 | 29 . 160 Received Heat Transfer 153 | . 12 141 Effects 1 | . . 1 Energy Bleed 1 | . . 1 Siege Activations . | . . . Martial Activations . | . . . Shielding Activations . | . . . Robots Disrupted . | . . . Combat Hostiles . | . . . Robots Corrupted . | . . . Combat Hostiles . | . . . Parts Fried . | . . . Impact Corruptions . | . . . Robots Melted . | . . . Combat Hostiles . | . . . Parts Melted 2 | . . 2 Heat Transferred 750 | 125 . 625 Parts Sabotaged . | . . . Parts Stolen . | . . . Parts Stripped . | . . . Power Chain Reactions . | . . . Alert | -11 -10 -10 ------- Run | Yrd Mat Min Maximum Alert Level . | . . . Low Security (%) 100 | 100 100 100 Level 1 . | . . . Level 2 . | . . . Level 3 . | . . . Level 4 . | . . . Level 5 . | . . . High Security . | . . . Max Security . | . . . Peak Influence 117 | 5 6 117 Initial . | . . . Average 36 | 1 . 77 Influence Increases 208 | 5 6 197 Destroy 0b10 Robot/C 160 | . . 160 Destroy 0b10 Robot/NC 5 | 5 . . Destroy Leader 30 | . . 30 Successful Hack 6 | . 6 . Destroy Structure 7 | . . 7 Influence Decreases 191 | 5 6 180 Time Decay 161 | 5 6 150 Lost Part 30 | . . 30 Squads Dispatched . | . . . Investigation . | . . . Extermination . | . . . Reinforcement . | . . . Assault . | . . . Garrison . | . . . Intercept . | . . . Searches Triggered . | . . . Construction Impeded . | . . . Haulers Reinforced . | . . . Active Scanning Responses . | . . . Cargo Convoy Interrupts . | . . . Stealth | -11 -10 -10 --------- Run | Yrd Mat Min Distress Signals . | . . . Communications Jammed . | . . . Distress Signals . | . . . Times Spotted 14 | . 5 9 Peak Tracking Total 3 | . 3 3 Tactical Retreats . | . . . Traps | -11 -10 -10 ------- Run | Yrd Mat Min Traps Triggered 1 | . . 1 Indirectly . | . . . Trap Hack Attempts . | . . . Triggered . | . . . Disarmed . | . . . Reprogrammed . | . . . Reused . | . . . Traps Extracted . | . . . Installed . | . . . Triggered . | . . . Machines | -11 -10 -10 ---------- Run | Yrd Mat Min Machines Disabled . | . . . Max in Single Turn . | . . . Machines Repaired . | . . . Machines Dismantled . | . . . Machines Sabotaged . | . . . Overloaded Fab Kills . | . . . Hacking | -11 -10 -10 --------- Run | Yrd Mat Min Machines Accessed 2 | . 1 1 Terminals 1 | . 1 . Fabricators . | . . . Repair Stations . | . . . Recycling Units . | . . . Scanalyzers . | . . . Garrison Access . | . . . Total Hacks 4 | . 3 1 Successful 2 | . 1 1 Failed 2 | . 2 . Catastrophic . | . . . Database Lockouts . | . . . Manual 3 | . 3 . Terminals 3 | . 3 . Fabricators . | . . . Repair Stations . | . . . Recycling Units . | . . . Scanalyzers . | . . . Garrison Access . | . . . Terminal Hacks 1 | . . 1 Open Door 1 | . . 1 Fabricator Hacks . | . . . Repair Station Hacks . | . . . Recycling Unit Hacks . | . . . Scanalyzer . | . . . Garrison Access Hacks . | . . . Unauthorized Hacks 1 | . 1 . Terminals 1 | . 1 . Operators 1 | . 1 . Fabricators . | . . . Repair Stations . | . . . Recycling Units . | . . . Scanalyzers . | . . . Garrison Access . | . . . Data Cores Recovered . | . . . Used . | . . . Hacking Detections 1 | . 1 . Full Trace Events 1 | . 1 . Feedback Events . | . . . Feedback Blocked . | . . . Robot Schematics Acquired . | . . . Robots Built . | . . . Authchips . | . . . Time . | . . . Total Robot Build Rating . | . . . Part Schematics Acquired . | . . . Parts Built . | . . . Authchips . | . . . Time . | . . . Total Part Build Rating . | . . . Part Studies Acquired . | . . . Parts Repaired . | . . . Time . | . . . Parts Recycled . | . . . Recycled Matter . | . . . Retrieved Matter . | . . . Retrieved Components . | . . . Parts Scanalyzed . | . . . Part Schematics Acquired . | . . . Parts Damaged . | . . . Bothacking | -11 -10 -10 ------------ Run | Yrd Mat Min Used RIF Installer . | . . . Robots Hacked . | . . . Non-combat . | . . . Combat . | . . . Robot Hacks Applied . | . . . Relay Couplers Released . | . . . Fabnet Peak Effective % . | . . . Robots Rewired . | . . . Allies Hacked . | . . . Hacks Repelled . | . . . Allies | -11 -10 -10 -------- Run | Yrd Mat Min Total Allies . | . . . Largest Group . | . . . Highest-Rated Group . | . . . Highest-Rated Ally . | . . . Total Orders . | . . . Ally Attacks . | . . . Total Damage . | . . . Kills . | . . . Allies Corrupted . | . . . Allies Melted . | . . . Intel | -11 -10 -10 ------- Run | Yrd Mat Min Active Infowar (turns) 591 | 22 269 300 Terrain 591 | 22 269 300 Robot Analysis Total . | . . . Derelict Logs Recovered 1 | . . 1 Drone Launches . | . . . Drone Recoveries . | . . . Exploration | -11 -10 -10 ------------- Run | Yrd Mat Min Turns Passed 643 | 74 269 300 Spaces Moved 332 | 45 159 128 Core 17 | 17 . . Treads 315 | 28 159 128 Legs . | . . . Wheels . | . . . Hover . | . . . Flight . | . . . Fastest Speed 50 | 50 160 160 Average Speed 154 | 118 160 160 Slowest Speed 160 | 160 160 160 Overloaded Moves . | . . . Propulsion Burnouts . | . . . Robots Hopped . | . . . Potential Cave-ins . | . . . Cave-ins Triggered . | . . . Exploration Rate (%) 21 | 3 29 32 Regions Visited 2 Branch Regions 1 Pre-discovered Areas 1 | . . 1 Known Exits Taken . | . . . Unknown Exits Taken 2 | 1 1 . Scrap Searched . | . . . Spaces Dug . | . . . Terrain Destroyed 7 | . . 7 Melee . | . . . Projectile . | . . . AOE 7 | . . 7 Terrain Rammed . | . . . Walls Destroyed . | . . . Machines Disabled . | . . . Actions | -11 -10 -10 --------- Run | Yrd Mat Min Total 423 | 60 174 189 Wait 42 | . 15 27 Move 330 | 44 158 128 Hop . | . . . Pick Up 16 | 7 1 8 Fast Attach . | . . . Attach 8 | 6 . 2 Detach . | . . . Swap 5 | . . 5 Drop 2 | . . 2 Fire 20 | 3 . 17 Melee . | . . . Ram . | . . . Kick . | . . . Crush . | . . . Escape Stasis . | . . . Rewire . | . . . Trap . | . . . Miscellaneous . | . . . Route ------- -11/Scrapyard -10/Materials -10/Mines History --------- Turn | Location | Event 7 | -11/Scrapyard | Discovered new exit (range 16) 75 | -11/Scrapyard | Entered Materials 193 | -10/Materials | Discovered new exit (range 11) 304 | -10/Materials | Build established: Mutant 344 | -10/Materials | Entered Mines 470 | -10/Mines | Core integrity fell below 50% 539 | -10/Mines | Learned location of Zion (-7) 583 | -10/Mines | Met a Derelict who couldn't figure out how to use a Trap Extractor 630 | -10/Mines | Assembled infested the area 635 | -10/Mines | Assisted by a Guerilla fighting off Assembled 641 | -10/Mines | Core integrity fell below 20% 644 | -10/Mines | Destroyed by D-53 Grenadier with Mini Grenade Launcher Last Messages --------------- K-01 Serf collects debris. ALERT: Infestation in the mines, dispatching Demolisher response squad. A derelict emerges from the shadows: "You need to get out of here! I've been tracking a group of Assembled to figure out where they're coming from, and they're closing on this area, come on!" X6-BLF(h): "I'll hold them off! Go on ahead or try to find another way!" C-45 Heavy ARC bursts open, deploying its payload. D-53 Grenadier unfolds itself. K-01 Serf destroyed. HV Slug penetrates D-53 Grenadier. HV Slug penetrates Wall. The unstable cave ceiling collapses. EM Pulse Cannon destroyed. Lgt. Treads destroyed. Sml. Laser destroyed. Map ----- +----------------------------------------------------+ | | | | | | | | | | | | | | | ?????????????????????????????????????? | | ?????????????????????????????????????? | | ?????????????????????????????????????? | | ?????????????????????????????????????? | | ?????????????????????????????????????? | | ?????????????????????????????????????? | | ?????#???????#???????????????????????? | | ?????# ??????????????????????????????? | | ?????# ?????????????????????????????? | | ?????# ?????????????????????????????? | | ?????? ????????????????????????????? | | ??????# #???????????????????????????? | | ??????# #?####?????????????????????? | | ??????# ## ##????????????????????? | | ??????# ##???????#???????????? | | ???????? ! ##???# #???????????? | | ?????????# ###? #???????????? | | ?????????## #% #?? ??????????? | | ?????????# @ # #?????????????? | | ???????# # d ##????????????? | | ???????# d ;#????????????? | | ???????### % ##????????????? | | ?????????### #?????????????? | | ??????????#### ##????????????? | | ???#?????????## #????????????? | | ?????????#???### # ### #???#????????? | | ??#???#???#??### ###???#????????????? | | ?????#???????## ##??? ##???????????? | | ???#???#????## #### #####????????? | | ????????##### ##???????? | | #???????#"/ # #???????? | | ????????# ! #???????? | | ????#??## ###### #??????? | | ???????##"! ##???????????????? | | ??????## ! X #???????#????????? | | ???????# ! # ##???#????????????? | | ???????## #### ##?????????????????? | | ?##?????###???## #?????????#??? ????? | | ?????########### #??????????????????? | | ?????# #?#????????????????? | | ????## ######### #??????????????????? | | ?????# #?????#?# #####????#?????????? | | #????# #???????# #??????????????? | +----------------------------------------------------+ Best States ------------- Heat Dissipation 35 Energy Generation 10 Energy Capacity 250 Matter Stores 300 Matter Capacity 300 Sight Range 16 Terrain Scan Range 16 Terrain Scan Density 10 Evasion (%) 50 Recoil Reduction 2 Item Schematics ----------------- None Robot Schematics ------------------ None Fabricated ------------ Nothing Repaired ---------- Nothing Studied --------- None Alien Tech Used ----------------- None Achievements -------------- None Challenges ------------ None Game ------ Seed AccelerationBiometalWings Manual? 0 Play Time 00:09:32 Cumulative 20.9 hours Start 2026.01.06 @ 15:20:20 End 2026.01.06 @ 15:28:32 Sessions 1 Manual Loads 0 Difficulty Rogue Special Mode None Game No. 33 Rogue 33 Adventurer 0 Explorer 0 Win Type - Total 0 Types 0/0/0/0/0/0/0/0/0/0 Lore% 26 Gallery% 25 Achievement% 14 Wizard Run 0 Options --------- Layout 2 ASCII 0 Keyboard 0 Movement Numpad Keybinds 0 Fullscreen 1 Font 24/Proggy Map View 50x44 Zoom Use 0% Tactical HUD 0 Map Filters NONE Filters NONE Steam 1 RUN: d134e245-852e-4dff-9585-33cfdd6466cd